bitfinex-derivatives/quotes_SOLF0:USTF0_20250109
["timestamp","ask_amount","ask_price","bid_price","bid_amount"]
[1736397860221,0.93220584,194.98,194.93,6.48303701]
[1736397860521,0.93220584,194.98,194.95,2.5659]
[1736397860823,0.93220584,194.98,194.93,6.48303701]
[1736397861123,2.96,194.99,194.93,6.48303701]
[1736397862224,5.5254,194.99,194.94,2.566]
[1736397863420,6.48303701,194.98,194.94,2.566]
[1736397865822,5.5254,194.99,194.94,2.566]
[1736397866220,12.00843701,194.99,194.94,2.566]
[1736397866521,9.44303701,194.99,194.94,2.566]
[1736397867618,9.44303701,194.99,194.95,2.5658]
[1736397870724,6.48303701,194.97,194.88,3.0995]
[1736397870923,9.04863701,194.97,194.9,6.48303701]
[1736397871224,6.48303701,194.97,194.9,6.48303701]
[1736397872226,6.48303701,194.97,194.93,2.5661]
[1736397874325,9.04863701,194.97,194.92,2.5662]
[1736397876317,2.5658,194.96,194.92,2.5662]
[1736397876721,6.48303701,194.95,194.9,2.5665]
[1736397877028,2.96,194.94,194.9,2.5665]
[1736397877323,2.96,194.94,194.89,2.5666]
[1736397878227,2.96,194.94,194.9,2.5665]
[1736397878923,6.48303701,194.93,194.88,6.48303701]
[1736397879125,6.48303701,194.93,194.89,2.5666]
[1736397881030,6.48303701,194.9,194.86,2.5669]
[1736397881226,2.96,194.89,194.86,2.5669]
[1736397883627,2.96,194.89,194.88,9.04983701]
[1736397884427,2.96,194.91,194.88,9.04983701]
[1736397884628,2.96,194.91,194.86,6.48303701]
[1736397885439,2.96,194.91,194.88,2.5668]
[1736397890741,2.96,194.91,194.86,6.48303701]
[1736397891046,9.44303701,194.91,194.87,2.5669]
[1736397891942,2.96,194.91,194.86,6.48303701]
[1736397892146,2.96,194.91,194.88,2.5667]
[1736397892334,2.96,194.91,194.86,6.48303701]
[1736397893140,2.96,194.91,194.88,2.5668]
[1736397900447,2.96,194.91,194.89,2.5665]
[1736397900653,2.96,194.91,194.88,6.48303701]
[1736397902049,2.96,194.91,194.89,2.5666]
[1736397902450,2.5656,194.97,194.91,2.5663]
[1736397902753,7.41530257,194.96,194.9,6.48303701]
[1736397902954,2.96,194.95,194.9,6.48303701]
[1736397903449,2.96,194.95,194.94,2.566]
[1736397903663,2.96,194.95,194.92,6.48303701]
[1736397903948,2.96,194.95,194.94,2.566]
[1736397904253,2.96,194.97,194.92,6.48303701]
[1736397905254,2.96,194.97,194.94,2.5659]
[1736397910253,6.48303701,194.96,194.89,1.5159]
[1736397910449,6.48303701,194.94,194.85,1.5013]
[1736397910755,6.48303701,194.93,194.87,6.48303701]
[1736397910952,2.96,194.92,194.87,6.48303701]
[1736397911153,2.96,194.92,194.89,2.5666]
[1736397911359,2.96,194.92,194.87,6.48303701]
[1736397911853,5.5263,194.92,194.87,9.04983701]
[1736397912251,2.96,194.92,194.87,9.04983701]
[1736397912652,2.96,194.92,194.87,2.5668]
[1736397913159,2.96,194.92,194.88,2.5667]
[1736397915460,7.06850041,195.0,194.89,6.48303701]
[1736397915661,9.44303701,194.96,194.89,6.48303701]
[1736397917170,9.44303701,194.96,194.91,2.5663]
[1736397918280,9.44303701,194.96,194.91,6.48303701]
[1736397918571,2.96,194.96,194.93,2.5661]
[1736397922574,6.48303701,194.98,194.93,2.5661]
[1736397922575,9.44303701,194.98,194.93,2.5661]
[1736397927376,6.48303701,194.96,194.85,1.5013]
[1736397927576,6.48303701,194.94,194.87,6.48303701]
[1736397927778,2.94,194.93,194.87,6.48303701]
[1736397928283,2.94,194.93,194.9,2.5664]
[1736397928476,2.94,194.93,194.89,6.48303701]
[1736397928980,2.94,194.93,194.9,2.5665]
[1736397932283,2.94,194.93,194.89,2.5666]
[1736397935081,2.94,194.93,194.87,6.48303701]
[1736397935288,6.48303701,194.98,194.91,6.48303701]
[1736397935484,2.94,194.97,194.91,6.48303701]
[1736397936681,2.94,194.97,194.93,2.566]
[1736397940287,6.48303701,194.98,194.91,6.48303701]
[1736397940492,13.55048308,195.04,194.97,6.48303701]
[1736397940791,0.93196018,195.03,194.99,6.48303701]
[1736397940992,178.75512569,195.05,194.99,6.48303701]
[1736397941187,0.93185137,195.04,194.99,6.48303701]
[1736397942090,0.93185137,195.04,195.0,2.5652]
[1736397942295,2.94,195.05,195.0,2.5652]
[1736397942585,0.93185416,195.04,195.0,2.5652]
[1736397942984,11.98743701,195.06,195.0,2.5652]
[1736397943184,0.93188553,195.05,195.0,2.5652]
[1736397943385,6.48303701,195.04,195.0,2.5652]
[1736397946692,2.94,195.06,195.0,2.5652]
[1736397946895,4.1159555,195.08,195.05,2.5645]
[1736397946896,0.20921,195.08,195.05,2.5645]
[1736397947493,0.20921,195.08,195.05,6.48303701]
[1736397948087,0.20921,195.08,195.06,2.5644]
[1736397949298,6.69224701,195.08,195.03,6.48303701]
[1736397949497,6.48303701,195.06,195.01,9.48433701]
[1736397951202,6.48303701,195.06,195.02,2.5649]
[1736397952495,12.19644701,195.08,195.02,2.5649]
[1736397953604,12.19644701,195.08,195.03,2.5648]
[1736397956404,6.48303701,195.06,195.02,2.5649]
[1736397956603,6.48303701,195.04,194.92,2.94]
[1736397956802,2.94,195.03,194.98,6.48303701]
[1736397957800,2.94,195.03,194.99,2.5653]
[1736397958007,2.94,195.07,195.0,6.48303701]
[1736397958207,6.48303701,195.05,195.0,6.48303701]
[1736397958408,6.48303701,195.05,194.98,6.48303701]
[1736397959507,9.04763701,195.05,194.98,6.48303701]
[1736397960805,9.04763701,195.05,194.99,2.5653]
[1736397961510,9.04763701,195.05,194.98,6.48303701]
[1736397961710,9.04763701,195.05,195.0,2.5652]
[1736397965308,9.04743701,195.07,195.0,6.48303701]
[1736397965508,18.5387,195.18,195.02,6.48303701]
[1736397965815,2.5638,195.11,195.06,2.5644]
[1736397966014,0.93159714,195.1,195.06,2.5644]
[1736397966313,9.42303701,195.11,195.06,2.5644]
[1736397967009,6.48303701,195.11,195.06,2.5644]
[1736397968113,3.1187,195.18,195.0,3.0132]
[1736397968312,6.48303701,195.15,195.08,6.48303701]
[1736397968613,2.94,195.14,195.08,6.48303701]
[1736397969411,6.48303701,195.13,195.08,2.5641]
[1736397969612,6.48303701,195.11,195.0,3.0132]
[1736397969814,6.48303701,195.11,195.04,9.04763701]
[1736397970419,6.48303701,195.11,195.04,6.48303701]
[1736397970610,6.48303701,195.11,195.06,6.48303701]
[1736397971615,6.48303701,195.11,195.04,6.48303701]
[1736397971811,6.48303701,195.11,195.05,2.5644]
[1736397972208,6.48303701,195.11,195.04,6.48303701]
[1736397972209,6.48303701,195.11,195.06,6.48303701]
[1736397973022,6.48303701,195.11,195.08,2.5641]
[1736397974215,9.04653701,195.13,195.08,2.5641]
[1736397974409,6.48303701,195.13,195.08,2.5641]
[1736397974817,6.48303701,195.13,195.06,6.48303701]
[1736397975012,6.48303701,195.13,195.09,2.564]
[1736397976313,2.5632,195.16,195.1,2.5639]
[1736397976516,6.48303701,195.14,195.1,2.5639]
[1736397978814,6.48303701,195.14,195.01,2.94]
[1736397979021,9.04643701,195.14,195.01,2.94]
[1736397979215,9.04643701,195.14,195.06,6.48303701]
[1736397979718,9.04643701,195.14,195.07,2.5642]
[1736397980220,9.04643701,195.14,195.06,6.48303701]
[1736397980418,9.04643701,195.14,195.08,2.5641]
[1736397980718,2.5635,195.13,195.08,2.5641]
[1736397982521,6.48303701,195.14,195.06,6.48303701]
[1736397982815,9.04653701,195.14,195.08,2.5642]
[1736397983020,6.48303701,195.12,195.0,3.0132]
[1736397983221,6.48303701,195.1,195.05,6.48303701]
[1736397983518,6.48303701,195.08,195.01,6.48303701]
[1736397983714,9.04743701,195.06,195.01,9.04793701]
[1736397983915,2.94,195.05,195.01,9.04793701]
[1736397985016,2.94,195.05,195.01,6.48303701]
[1736397985324,5.5046,195.05,194.99,6.48303701]
[1736397986720,9.04773701,195.04,194.99,6.48303701]
[1736397987824,9.04773701,195.04,194.97,6.48303701]
[1736397988121,9.04773701,195.04,194.99,2.5653]
[1736397988419,6.48303701,195.02,194.94,3.1662]
[1736397988625,6.48303701,195.02,194.95,6.48303701]
[1736397989921,6.48303701,195.0,194.94,3.1662]
[1736397990121,2.94,194.99,194.92,6.48303701]
[1736397990622,2.5656,194.98,194.93,2.5661]
[1736397991118,2.5656,194.97,194.92,6.48303701]
[1736397992122,9.04853701,194.98,194.92,6.48303701]
[1736397992320,2.94,194.97,194.94,6.48303701]
[1736397992518,2.94,194.98,194.96,6.48303701]
[1736397992714,3.039,195.1,194.96,6.48303701]
[1736397992919,6.48303701,195.05,194.99,6.48303701]
[1736397993218,2.94,195.06,195.01,2.565]
[1736397993417,2.94,195.06,194.99,6.48303701]
[1736397993616,2.94,195.08,195.01,6.48303701]
[1736397993922,5.5042,195.08,195.03,2.5647]
[1736397994224,6.48303701,195.07,195.01,6.48303701]
[1736397994723,6.48303701,195.07,195.02,2.5649]
[1736397995320,9.04733701,195.07,195.01,6.48303701]
[1736397995624,9.04733701,195.07,195.0,2.5651]
[1736397996226,9.04733701,195.07,195.01,2.5651]
[1736397997521,6.48303701,195.05,194.99,9.04823701]
[1736397997722,6.48303701,195.05,194.96,1.5521]
[1736397997928,6.48303701,195.05,194.97,6.48303701]
[1736397998130,9.04763701,195.05,194.99,2.5653]
[1736397998325,6.48303701,195.05,194.97,6.48303701]
[1736397998525,6.48303701,195.05,194.99,6.48303701]
[1736397999629,6.48303701,195.05,194.99,9.04833701]
[1736398000327,6.48303701,195.05,195.0,2.5651]
[1736398002029,2.5645,195.06,195.0,2.5651]
[1736398002228,6.48303701,195.05,195.0,2.5651]
[1736398002432,2.94,195.08,194.99,6.48303701]
[1736398002631,6.48303701,195.06,195.02,2.5649]
[1736398003249,6.48303701,195.06,194.99,6.48303701]
[1736398003540,9.42303701,195.08,195.01,6.48303701]
[1736398003740,2.94,195.07,195.01,6.48303701]
[1736398005642,2.94,195.07,195.03,2.5647]
[1736398006047,2.94,195.07,195.01,6.48303701]
[1736398007742,2.94,195.07,195.03,2.5647]
[1736398008549,2.94,195.07,195.05,2.5645]
[1736398008843,2.94,195.07,195.03,6.48303701]
[1736398009046,2.94,195.07,195.06,2.5644]
[1736398009442,6.48303701,195.1,195.06,2.5644]
[1736398009650,9.42303701,195.1,195.06,2.5644]
[1736398009849,6.48303701,195.1,195.06,2.5644]
[1736398010043,9.42303701,195.1,195.06,2.5644]
[1736398010446,2.94,195.1,195.0,1.533]
[1736398010639,6.48303701,195.13,195.09,2.564]
[1736398010946,6.48303701,195.13,195.07,6.48303701]
[1736398011243,6.48303701,195.13,195.1,2.5638]
[1736398011445,6.48303701,195.13,195.0,1.533]
[1736398011649,6.48303701,195.13,195.07,6.48303701]
[1736398011944,6.48303701,195.11,195.07,6.48303701]
[1736398012650,6.48303701,195.11,195.07,2.5642]
[1736398012841,6.48303701,195.11,195.05,6.48303701]
[1736398014149,6.48303701,195.11,195.08,2.564]
[1736398014841,6.48303701,195.13,195.09,2.564]
[1736398016142,6.48303701,195.11,195.07,2.5642]
[1736398016347,6.48303701,195.11,195.05,6.48303701]
[1736398016546,6.48303701,195.11,195.06,2.5643]
[1736398016950,6.48303701,195.11,195.05,6.48303701]
[1736398017952,9.04683701,195.11,195.06,2.5644]
[1736398020149,9.04683701,195.11,195.07,2.5642]
[1736398020544,9.04683701,195.11,195.05,6.48303701]
[1736398021052,9.04683701,195.11,195.06,2.5643]
[1736398023450,6.48303701,195.11,195.0,1.533]
[1736398023654,6.48303701,195.07,195.01,6.48303701]
[1736398023853,2.94,195.06,195.0,1.533]
[1736398024064,2.94,195.06,195.01,6.48303701]
[1736398024355,2.94,195.06,195.02,2.5648]
[1736398024555,2.94,195.06,195.01,6.48303701]
[1736398026051,2.94,195.06,195.03,2.5647]
[1736398027758,2.94,195.06,195.04,2.5646]
[1736398033754,2.5641,195.09,195.04,2.5646]
[1736398033962,6.48303701,195.13,195.05,6.48303701]
[1736398034665,6.48303701,195.14,195.07,6.48303701]
[1736398036062,6.48303701,195.14,195.11,2.5637]
[1736398037459,0.23097,195.16,195.15,2.5632]
[1736398037665,0.23097,195.16,195.15,9.04623701]
[1736398037865,221.44003811,195.23,195.17,2.5629]
[1736398038066,221.44003811,195.23,195.18,6.48303701]
[1736398038566,9.42303701,195.23,195.18,6.48303701]
[1736398039267,9.42303701,195.26,195.2,6.48303701]
[1736398039467,0.9309345,195.25,195.2,6.48303701]
[1736398040359,80.02,195.32,195.22,6.48303701]
[1736398040556,6.48303701,195.29,195.22,6.48303701]
[1736398040755,0.930848,195.28,195.22,6.48303701]
[1736398040960,0.930848,195.28,195.24,6.48303701]
[1736398041166,6.48303701,195.29,195.24,6.48303701]
[1736398041564,0.93066409,195.28,195.24,6.48303701]
[1736398042160,0.93066409,195.28,195.24,9.04503701]
[1736398042662,6.48303701,195.27,195.18,2.9697]
[1736398042859,6.48303701,195.23,195.18,1.4779]
[1736398043259,6.48303701,195.23,195.17,6.48303701]
[1736398043660,6.48303701,195.21,195.1,1.4812]
[1736398044060,6.48303701,195.17,195.11,6.48303701]
[1736398044265,11.98613701,195.17,195.11,9.04673701]
[1736398045565,2.5632,195.16,195.1,1.4812]
[1736398045767,6.48303701,195.15,195.07,6.48303701]
[1736398045965,6.48303701,195.13,195.07,6.48303701]
[1736398046165,2.94,195.12,195.07,6.48303701]
[1736398046470,2.94,195.12,195.07,9.04733701]
[1736398046661,6.48303701,195.11,195.05,6.48303701]
[1736398046863,9.04683701,195.11,195.05,2.5644]
[1736398047072,2.94,195.12,195.03,6.48303701]
[1736398047073,6.48303701,195.09,195.03,6.48303701]
[1736398047275,2.5642,195.08,195.01,5.5687]
[1736398047476,2.94,195.07,195.01,5.5687]
[1736398048372,2.94,195.07,195.02,2.5649]
[1736398048766,2.94,195.07,195.01,3.0037]
[1736398049075,13.04282029,195.07,194.95,13.04282029]
[1736398049275,13.04282029,195.07,194.95,16.21422029]
[1736398049480,2.5645,195.06,194.95,16.21422029]
[1736398050071,2.5645,195.06,194.99,2.5653]
[1736398051271,2.5645,195.06,194.95,16.21422029]
[1736398051472,2.5645,195.06,195.0,2.5652]
[1736398053878,13.04282029,195.07,195.0,2.5652]
[1736398054175,15.60712029,195.07,195.0,2.5652]
[1736398054571,15.60712029,195.07,194.95,16.21422029]
[1736398054779,15.60712029,195.07,195.01,2.565]
[1736398055372,10.10282029,195.04,194.95,3.1714]
[1736398056475,13.04282029,195.07,194.95,13.27422029]
[1736398056779,2.5647,195.04,194.96,2.5656]
[1736398056969,2.5647,195.04,194.95,3.1714]
[1736398057869,12.66752029,195.04,194.95,3.1714]
[1736398058075,12.66752029,195.04,194.98,2.5655]
[1736398058579,2.5648,195.03,194.95,3.1714]
[1736398058774,2.94,195.02,194.95,3.1714]
[1736398058975,10.10282029,195.01,194.94,2.566]
[1736398059176,2.94,195.02,194.9,4.4347]
[1736398059381,2.94,195.02,194.98,2.5655]
[1736398061078,2.94,195.02,194.92,10.10282029]
[1736398061379,2.94,195.02,194.96,2.5656]
[1736398063789,2.94,195.02,194.97,2.5656]
[1736398066888,2.5648,195.03,194.97,2.5656]
[1736398067087,2.94,195.02,194.97,2.5656]
[1736398067287,6.47009346,195.01,194.97,2.5656]
[1736398070391,6.47009346,194.99,194.91,6.47009346]
[1736398070585,9.03559346,194.99,194.91,6.47009346]
[1736398070785,6.47009346,194.99,194.91,6.47009346]
[1736398071184,2.5655,194.98,194.94,2.566]
[1736398071385,2.94,194.97,194.94,2.566]
[1736398072285,2.94,194.97,194.95,2.5659]
[1736398076695,9.41009346,194.97,194.95,2.5659]
[1736398077190,9.41009346,194.97,194.96,2.5657]
[1736398077499,2.94,194.97,194.96,2.5657]
[1736398079997,9.41009346,194.97,194.95,2.5659]
[1736398080492,9.41009346,194.97,194.9,7.96479346]
[1736398080692,11.97569346,194.97,194.93,2.566]
[1736398080901,6.47009346,194.95,194.93,2.566]
[1736398081386,9.03599346,194.95,194.9,2.5664]
[1736398081590,6.47009346,194.93,194.9,2.5664]
[1736398081797,6.47009346,194.93,194.85,8.03249346]
[1736398081991,2.94,194.92,194.88,2.5667]
[1736398082191,6.47009346,194.91,194.85,8.03249346]
[1736398083498,6.47009346,194.91,194.88,2.5667]
[1736398083699,6.47009346,194.89,194.82,6.47009346]
[1736398083890,6.47009346,194.87,194.8,6.47009346]
[1736398084094,9.41009346,194.87,194.8,6.47009346]
[1736398084295,9.41009346,194.87,194.84,2.5672]
[1736398084495,2.94,194.87,194.82,6.47009346]
[1736398086807,2.94,194.89,194.84,6.47009346]
[1736398087402,2.94,194.89,194.88,2.5668]
[1736398088608,6.47009346,194.93,194.9,2.5665]
[1736398088800,6.47009346,194.93,194.86,6.47009346]
[1736398089406,6.47009346,194.93,194.89,2.5666]
[1736398089905,2.94,194.94,194.86,6.47009346]
[1736398090102,6.47009346,194.96,194.88,6.47009346]
[1736398090705,6.47009346,194.96,194.9,6.47009346]
[1736398091604,6.47009346,194.96,194.88,9.41009346]
[1736398091903,6.47009346,194.96,194.92,2.5661]
[1736398092712,6.47009346,194.96,194.88,6.47009346]
[1736398092909,6.47009346,194.94,194.86,6.47009346]
[1736398093212,2.94,194.93,194.86,6.47009346]
[1736398093601,2.567,194.87,194.78,4.7770268]
[1736398093801,6.47009346,194.84,194.78,4.7770268]
[1736398094414,6.47009346,194.84,194.81,2.5676]
[1736398095205,2.5669,194.87,194.82,2.5675]
[1736398095408,2.94,194.83,194.82,2.5675]
[1736398096013,2.94,194.83,194.8,2.5677]
[1736398096208,2.94,194.83,194.78,4.7770268]
[1736398097013,2.94,194.83,194.77,1.5566]
[1736398097308,2.94,194.83,194.79,2.5679]
[1736398098111,2.94,194.83,194.77,1.5566]
[1736398098311,2.94,194.83,194.78,2.5681]
[1736398099015,15.63597591,194.83,194.77,4.1248]
[1736398099208,13.06847591,194.83,194.77,1.5566]
[1736398099716,2.5679,194.8,194.77,1.5566]
[1736398100913,10.12847591,194.8,194.77,1.5566]
[1736398101108,10.12847591,194.8,194.77,1.32563]
[1736398102113,2.5681,194.78,194.77,1.32563]
[1736398102314,5.5081,194.78,194.77,1.32563]
[1736398102912,2.5685,194.75,194.68,2.5693]
[1736398103113,2.5685,194.75,194.65,1.5219]
[1736398103312,10.12847591,194.76,194.65,1.5219]
[1736398103513,12.69687591,194.76,194.7,2.5691]
[1736398103912,2.94,194.75,194.7,2.5691]
[1736398105413,5.5085,194.75,194.68,2.5694]
[1736398105612,2.94,194.75,194.68,2.5694]
[1736398106616,5.5085,194.75,194.69,2.5693]
[1736398107413,10.12847591,194.76,194.69,2.5693]
[1736398107714,10.12847591,194.76,194.65,1.5219]
[1736398107715,5.5081,194.78,194.71,2.569]
[1736398108112,5.5081,194.78,194.67,2.94]
[1736398108316,3.0575,194.82,194.69,10.12847591]
[1736398108317,2.94,194.8,194.69,10.12847591]
[1736398108712,5.5079,194.8,194.72,2.5689]
[1736398109017,2.94,194.8,194.69,10.12847591]
[1736398109319,2.94,194.8,194.69,13.06847591]
[1736398109915,2.5681,194.79,194.69,13.06847591]
[1736398110716,2.5681,194.79,194.73,2.5687]
[1736398110717,12.69657591,194.79,194.73,2.5687]
[1736398115210,10.12847591,194.79,194.69,13.06847591]
[1736398115416,10.12847591,194.79,194.67,2.94]
[1736398116323,2.5684,194.76,194.7,2.569]
[1736398117016,10.12847591,194.79,194.71,2.569]
[1736398117223,2.5683,194.77,194.71,2.569]
[1736398118126,10.12847591,194.76,194.66,10.12847591]
[1736398118423,2.94,194.75,194.65,1.5219]
[1736398119419,6.48997741,194.71,194.67,2.5694]
[1736398120519,6.48997741,194.69,194.66,2.5697]
[1736398120927,6.48997741,194.69,194.65,1.5219]
[1736398121818,6.48997741,194.69,194.65,4.0917]
[1736398122620,6.48997741,194.69,194.65,2.5698]
[1736398123224,6.48997741,194.69,194.66,44.68011838]
[1736398123824,9.42997741,194.69,194.67,44.68011838]
[1736398124123,2.6752,194.79,194.67,44.68011838]
[1736398124326,6.48997741,194.71,194.67,44.68011838]
[1736398124526,6.48997741,194.73,194.69,2.5693]
[1736398124721,2.5687,194.74,194.7,44.68011838]
[1736398125026,6.48997741,194.72,194.7,44.68011838]
[1736398125226,6.48997741,194.72,194.71,29.18421536]
[1736398126529,18.57423744,194.72,194.69,2.5693]
[1736398126726,18.57423744,194.72,194.68,2.5694]
[1736398126727,6.48997741,194.7,194.68,2.5694]
[1736398128231,23.06208506,194.69,194.68,2.5694]
[1736398129631,12.08426003,194.69,194.68,2.5694]
[1736398130428,12.08426003,194.69,194.63,6.48997741]
[1736398130631,9.51411502,194.69,194.63,6.48997741]
[1736398131229,6.48997741,194.7,194.68,2.5694]
[1736398132334,3.00170634,194.69,194.68,2.5694]
[1736398133333,0.58090634,194.69,194.68,2.5694]
[1736398134629,6.48997741,194.72,194.66,1.472]
[1736398135638,6.48997741,194.72,194.69,2.5693]
[1736398140231,6.48997741,194.72,194.66,1.472]
[1736398141334,6.48997741,194.7,194.66,1.472]
[1736398141931,9.05917741,194.7,194.66,1.472]
[1736398142131,6.48997741,194.68,194.62,6.48997741]
[1736398142640,9.05947741,194.68,194.64,2.5699]
[1736398144238,2.5696,194.67,194.63,2.5701]
[1736398145046,9.05937741,194.68,194.63,2.5701]
[1736398145339,9.05937741,194.68,194.6,6.48997741]
[1736398145340,6.48997741,194.68,194.62,2.5702]
[1736398145543,6.48997741,194.66,194.62,2.5702]
[1736398149644,6.48997741,194.66,194.6,6.48997741]
[1736398149645,6.48997741,194.64,194.6,2.5704]
[1736398149947,6.48997741,194.64,194.59,1.4821]
[1736398150140,9.05997741,194.64,194.59,4.0526]
[1736398150337,9.05997741,194.64,194.59,2.5705]
[1736398150840,6.48997741,194.62,194.58,2.5707]
[1736398152548,6.48997741,194.62,194.59,2.5706]
[1736398154745,5.5098,194.65,194.6,2.5705]
[1736398154945,11.99977741,194.65,194.6,2.5705]
[1736398156845,2.94,194.64,194.62,2.5702]
[1736398157249,2.94,194.64,194.58,6.48997741]
[1736398157545,2.94,194.64,194.59,2.5705]
[1736398157746,2.94,194.64,194.58,6.48997741]
[1736398157938,2.94,194.64,194.55,1.536]
[1736398157939,9.42997741,194.64,194.55,1.536]
[1736398158141,12.00007741,194.64,194.58,2.5707]
[1736398159048,9.42997741,194.64,194.58,2.5707]
[1736398159351,2.5701,194.63,194.58,2.5707]
[1736398159947,11.99997741,194.64,194.56,6.48997741]
[1736398160544,11.99997741,194.64,194.59,2.5705]
[1736398161753,2.5701,194.63,194.59,2.5705]
[1736398162451,11.99997741,194.64,194.59,2.5705]
[1736398163654,9.42997741,194.64,194.59,2.5705]
[1736398163854,2.5701,194.63,194.59,2.5705]
[1736398165352,11.99997741,194.64,194.59,2.5705]
[1736398165550,11.99997741,194.64,194.56,6.48997741]
[1736398166054,6.48997741,194.58,194.45,191.0]
[1736398166248,2.94,194.57,194.49,6.48997741]
[1736398167750,2.94,194.57,194.53,2.5714]
[1736398168252,6.48997741,194.58,194.53,2.5714]
[1736398168452,2.94,194.57,194.53,2.5714]
[1736398170550,6.48997741,194.58,194.53,2.5714]
[1736398170751,2.94,194.57,194.51,6.48997741]
[1736398170955,2.94,194.59,194.53,6.48997741]
[1736398171257,2.94,194.59,194.56,2.5709]
[1736398173554,2.94,194.59,194.55,2.5711]
[1736398179959,2.94,194.59,194.57,2.5709]
[1736398180156,8.93382273,194.69,194.53,6.48997741]
[1736398180356,6.48997741,194.64,194.57,6.48997741]
[1736398180557,6.48997741,194.64,194.59,2.5706]
[1736398180756,6.48997741,194.64,194.57,6.48997741]
[1736398181461,9.42997741,194.64,194.57,6.48997741]
[1736398181759,9.42997741,194.64,194.6,2.5704]
[1736398182460,9.42997741,194.64,194.61,2.5703]
[1736398182660,9.42997741,194.64,194.57,6.48997741]
[1736398182960,6.48997741,194.66,194.63,2.5701]
[1736398183161,2.94,194.67,194.61,6.48997741]
[1736398183760,6.48997741,194.68,194.64,2.5699]
[1736398184460,6.48997741,194.68,194.65,2.5698]
[1736398184660,6.48997741,194.68,194.61,6.48997741]
[1736398185062,9.42997741,194.68,194.61,6.48997741]
[1736398185361,9.42997741,194.68,194.63,2.5701]
[1736398185551,6.48997741,194.68,194.63,2.5701]
[1736398185753,9.42997741,194.68,194.63,2.5701]
[1736398188058,9.42997741,194.68,194.64,2.5698]
[1736398188461,9.42997741,194.68,194.61,6.48997741]
[1736398188661,9.42997741,194.68,194.65,2.5697]
[1736398188859,8.93382273,194.74,194.62,1.4553]
[1736398188860,6.48997741,194.7,194.63,6.48997741]
[1736398189060,9.42997741,194.7,194.63,6.48997741]
[1736398190561,6.48997741,194.7,194.63,6.48997741]
[1736398191067,6.48997741,194.7,194.67,2.5695]
[1736398191459,6.48997741,194.7,194.63,6.48997741]
[1736398192062,6.48997741,194.7,194.66,2.5696]
[1736398193065,6.48997741,194.7,194.67,2.5695]
[1736398200171,2.5685,194.75,194.7,2.5691]
[1736398200374,9.42997741,194.75,194.67,6.48997741]
[1736398200670,9.42997741,194.75,194.69,6.48997741]
[1736398201369,6.48997741,194.75,194.71,2.569]
[1736398201673,6.48997741,194.73,194.65,9.42997741]
[1736398201877,6.48997741,194.71,194.65,9.42997741]
[1736398202077,6.48997741,194.71,194.66,2.5696]
[1736398202477,6.48997741,194.71,194.65,6.48997741]
[1736398203074,6.48997741,194.71,194.68,2.5694]
[1736398204782,6.48997741,194.71,194.65,6.48997741]
[1736398204978,6.48997741,194.73,194.69,2.5692]
[1736398206580,6.48997741,194.73,194.65,6.48997741]
[1736398206879,6.48997741,194.73,194.71,2.569]
[1736398207583,6.48997741,194.73,194.67,6.48997741]
[1736398207777,6.48997741,194.75,194.73,2.5688]
[1736398207971,6.48997741,194.75,194.69,6.48997741]
[1736398208175,6.48997741,194.75,194.74,2.5686]
[1736398208373,6.48997741,194.78,194.71,6.48997741]
[1736398208772,6.48997741,194.78,194.77,2.5682]
[1736398208975,6.48997741,194.8,194.75,6.48997741]
[1736398209277,6.48997741,194.8,194.78,2.5681]
[1736398211283,6.48997741,194.8,194.77,2.5682]
[1736398213182,6.48997741,194.78,194.75,2.5685]
[1736398214782,10.93132603,194.83,194.78,2.568]
[1736398214982,10.93132603,194.83,194.76,6.48997741]
[1736398214983,6.48997741,194.82,194.76,6.48997741]
[1736398215382,9.05727741,194.84,194.79,2.5679]
[1736398215577,9.42997741,194.86,194.78,6.48997741]
[1736398215782,6.48997741,194.86,194.81,2.5677]
[1736398216081,2.94,194.87,194.81,2.5677]
[1736398216082,6.48997741,194.84,194.81,2.5677]
[1736398216883,6.48997741,194.84,194.78,6.48997741]
[1736398217087,6.48997741,194.84,194.79,2.5678]